fUST/lending_fUST_20251007
["ID","MTS","AMOUNT","RATE_DAILY","PERIOD"]
[389773595,1759841439198,-500.0,0.0001989,2]
[389773596,1759841439207,-500.0,0.0001989,2]
[389773597,1759841439217,-500.0,0.0001989,2]
[389773598,1759841439226,-500.0,0.0001989,2]
[389773599,1759841439235,-500.0,0.0001989,2]
[389773600,1759841439245,-500.0,0.0001989,2]
[389773601,1759841439255,-500.0,0.0001989,2]
[389773602,1759841439264,-500.0,0.0001989,2]
[389773603,1759841439275,-500.0,0.0001989,2]
[389773604,1759841439287,-500.0,0.0001989,2]
[389773605,1759841439296,-500.0,0.0001989,2]
[389773606,1759841439305,-500.0,0.0001989,2]
[389773607,1759841439315,-500.0,0.0001989,2]
[389773608,1759841439325,-500.0,0.0001989,2]
[389773609,1759841439335,-500.0,0.0001989,2]
[389773610,1759841439345,-500.0,0.0001989,2]
[389773611,1759841439354,-500.0,0.0001989,2]
[389773612,1759841439364,-500.0,0.0001989,2]
[389773613,1759841439374,-500.0,0.0001989,2]
[389773614,1759841439383,-500.0,0.0001989,2]
[389773615,1759841439393,-54305.83099971,0.000199,2]
[389773616,1759841439403,-2000.0,0.000199,2]
[389773617,1759841439412,-500.0,0.000199,2]
[389773618,1759841439422,-657.0,0.00019913,2]
[389773619,1759841439432,-329.0,0.00019943,2]
[389773620,1759841439442,-4043.11500075,0.00019943,2]
[389773621,1759841439450,-230.91111162,0.00019953,2]
[389773622,1759841439461,-168.0,0.00019956,2]
[389773623,1759841439473,-168.0,0.00019959,2]
[389773624,1759841439483,-168.0,0.00019974,2]
[389773625,1759841439492,-169.04001388,0.00019976,2]
[389773626,1759841439502,-177.26069777,0.00019976,2]
[389773627,1759841439511,-2940.1324729,0.00019986,2]
[389773628,1759841439520,-174.6845,0.0002,2]
[389773629,1759841439530,-2000.0,0.0002,2]
[389773630,1759841439539,-161.52172655,0.0002,2]
[389773631,1759841439548,-329.0,0.0002,2]
[389773632,1759841439557,-329.0,0.0002,2]
[389773633,1759841439566,-329.0,0.0002,2]
[389773634,1759841439575,-329.0,0.0002,2]
[389773635,1759841439584,-303.04464238,0.0002,2]
[389773636,1759841439594,-152.159178,0.0002,5]
[389773637,1759841439603,-152.159178,0.0002,5]
[389773638,1759841439612,-1000.0,0.0002,2]
[389773639,1759841439622,-1000.0,0.0002,2]
[389773640,1759841439631,-1000.0,0.0002,2]
[389773641,1759841439641,-1000.0,0.0002,2]
[389773642,1759841439649,-1000.0,0.0002,2]
[389773643,1759841439658,-1000.0,0.0002,2]
[389773644,1759841439667,-1000.0,0.0002,2]
[389773645,1759841439676,-1000.0,0.0002,2]
[389773646,1759841439686,-1000.0,0.0002,2]
[389773647,1759841439695,-1000.0,0.0002,2]
[389773648,1759841439705,-1000.0,0.0002,2]
[389773649,1759841439714,-1000.0,0.0002,2]
[389773650,1759841439724,-1000.0,0.0002,2]
[389773651,1759841439733,-1000.0,0.0002,2]
[389773652,1759841439741,-1000.0,0.0002,2]
[389773653,1759841439750,-1000.0,0.0002,2]
[389773654,1759841439760,-1000.0,0.0002,2]
[389773655,1759841439769,-645.75332822,0.0002,2]
[389773656,1759841439778,-500.0,0.0002,2]
[389773657,1759841439788,-164.66387778,0.0002,2]
[389773658,1759841439797,-378.52332229,0.0002001,2]
[389773659,1759841439806,-168.0,0.00020036,2]
[389773660,1759841439816,-168.0,0.00020044,2]
[389773661,1759841439825,-741.0,0.00020095,2]
[389773662,1759841439834,-741.0,0.000201,2]
[389773663,1759841439843,-200.0,0.000201,2]
[389773664,1759841439852,-173.09530926,0.0002015,7]
[389773665,1759841439861,-168.0,0.00020151,2]
[389773666,1759841439871,-500.0,0.00020174,2]
[389773667,1759841439880,-741.0,0.00020176,2]
[389773668,1759841439889,-657.0,0.00020187,2]
[389773669,1759841439899,-700.958908,0.00020187,2]
[389773670,1759841439908,-152.159178,0.0002022,19]
[389773671,1759841439919,-152.159178,0.0002022,19]
[389773672,1759841439928,-160.0,0.00020256,4]
[389773673,1759841440187,-1003.75,0.00020273,2]
[389773674,1759841440197,-539.34,0.00020273,2]
[389773675,1759841440207,-1000.0,0.00020273,2]
[389773676,1759841440217,-250.0,0.000203,2]
[389773677,1759841440226,-250.0,0.000203,2]
[389773678,1759841440235,-162.9,0.000203,2]
[389773679,1759841440244,-391.5020677,0.00020308,2]
[389773680,1759841440254,-672.0,0.00020387,2]
[389773681,1759841440263,-1000.0,0.00020421,2]
[389773682,1759841440273,-417.47746486,0.00020421,2]
[389773683,1759841440286,-1000.0,0.00020421,2]
[389773684,1759841440296,-1000.0,0.00020421,2]
[389773685,1759841440306,-1000.0,0.00020421,2]
[389773686,1759841440315,-500.0,0.00020448,2]
[389773687,1759841440325,-657.0,0.00020461,2]
[389773688,1759841440336,-160.0,0.00020467,2]
[389773689,1759841440345,-250.0,0.000205,2]
[389773690,1759841440353,-200.0,0.0002051,2]
[389773691,1759841440363,-1003.75,0.00020547,2]
[389773692,1759841440373,-539.34,0.00020547,2]
[389773694,1759841440382,-1000.0,0.00020547,2]
[389773695,1759841440391,-152.159178,0.0002057,7]
[389773696,1759841440400,-1372.11587152,0.0002061,2]
[389773697,1759841440409,-12500.0,0.00020664,7]
[389773698,1759841440419,-533.72506543,0.00020664,7]
[389773699,1759841440428,-402.02512307,0.00020664,7]
[389773700,1759841440437,-1000.0,0.0002071,4]
[389773701,1759841440447,-500.0,0.00020722,2]
[389773702,1759841440456,-657.0,0.00020735,2]
[389773703,1759841440466,-248.67350482,0.00020753,2]
[389773704,1759841440475,-1003.75,0.00020821,2]
[389773705,1759841440485,-539.34,0.00020821,2]
[389773707,1759841440495,-1000.0,0.00020821,2]
[389773708,1759841440503,-152.159178,0.00020855,7]
[389773709,1759841440513,-253.06882797,0.000209,2]
[389773710,1759841440522,-250.0,0.000209,2]
[389773711,1759841440532,-250.0,0.000209,2]
[389773712,1759841440541,-2000.0,0.000209,2]
[389773713,1759841440551,-2000.0,0.000209,2]
[389773714,1759841440561,-587.0,0.00020951,2]
[389773715,1759841440570,-1536.05707338,0.00020968,2]
[389773716,1759841440580,-1500.0,0.00020968,2]
[389773717,1759841440589,-1500.0,0.00020968,2]
[389773718,1759841440599,-1500.0,0.00020968,2]
[389773720,1759841440608,-1000.0,0.00020994,5]
[389773721,1759841440618,-624.45,0.00020996,2]
[389773722,1759841440628,-10000.0,0.00021,5]
[389773723,1759841440639,-273.53799949,0.00021,2]
[389773724,1759841440648,-204.6365322,0.00021,2]
[389773725,1759841440658,-200.0,0.00021,2]
[389773727,1759841440668,-2000.0,0.00021,2]
[389773728,1759841440677,-3000.0,0.00021,2]
[389773729,1759841440686,-2000.0,0.00021,2]
[389773730,1759841440696,-657.0,0.00021009,2]
[389773731,1759841440705,-3000.0,0.0002101,2]
[389773732,1759841440714,-260.0,0.00021015,2]
[389773734,1759841440724,-3000.0,0.0002102,2]
[389773735,1759841440733,-3000.0,0.0002103,2]
[389773736,1759841440742,-3000.0,0.0002104,2]
[389773737,1759841440752,-3000.0,0.0002105,2]
[389773738,1759841440762,-3000.0,0.0002106,2]
[389773739,1759841440771,-3000.0,0.0002107,2]
[389773740,1759841440781,-3000.0,0.0002108,2]
[389773741,1759841440790,-3000.0,0.0002109,2]
[389773742,1759841440799,-1003.75,0.00021095,2]
[389773743,1759841440810,-539.34,0.00021095,2]
[389773744,1759841440820,-983.78222454,0.00021095,2]
[389773745,1759841440830,-3000.0,0.000211,2]
[389773746,1759841440839,-151.0,0.000211,4]
[389773747,1759841440849,-3000.0,0.0002111,2]
[389773748,1759841440858,-3000.0,0.0002112,2]
[389773749,1759841440867,-3000.0,0.0002113,2]
[389773750,1759841440876,-3000.0,0.0002114,2]
[389773751,1759841440886,-152.159178,0.0002114,7]
[389773752,1759841440895,-3000.0,0.0002115,2]
[389773753,1759841440905,-3000.0,0.0002116,2]
[389773754,1759841440914,-3000.0,0.0002117,2]
[389773755,1759841440923,-3000.0,0.0002118,2]
[389773756,1759841440932,-3000.0,0.0002119,2]
[389773758,1759841440941,-999.99999901,0.000212,2]
[389773759,1759841440951,-3000.0,0.000212,2]
[389773760,1759841440960,-204.0,0.000212,2]
[389773761,1759841440970,-3000.0,0.0002121,2]
[389773762,1759841440980,-3000.0,0.0002122,2]
[389773763,1759841440990,-3000.0,0.0002123,2]
[389773764,1759841440999,-3000.0,0.0002124,2]
[389773765,1759841441009,-3000.0,0.0002125,2]
[389773766,1759841441018,-3000.0,0.0002126,2]
[389773767,1759841441027,-3000.0,0.0002127,2]
[389773768,1759841441037,-3000.0,0.0002128,2]
[389773769,1759841441047,-864.0,0.0002128,20]
[389773770,1759841441056,-657.0,0.00021283,2]
[389773771,1759841441066,-3000.0,0.0002129,2]
[389773772,1759841441076,-3000.0,0.000213,2]
[389773773,1759841441086,-151.0,0.000213,4]
[389773774,1759841441095,-3000.0,0.0002131,2]
[389773775,1759841441104,-3000.0,0.0002132,2]
[389773776,1759841441114,-3000.0,0.0002133,2]
[389773777,1759841441124,-3000.0,0.0002134,2]
[389773778,1759841441133,-3000.0,0.0002135,2]
[389773779,1759841441143,-3000.0,0.0002136,2]
[389773780,1759841441153,-1003.75,0.00021369,2]
[389773781,1759841441163,-539.34,0.00021369,2]
[389773782,1759841441172,-3000.0,0.0002137,2]
[389773783,1759841441181,-160.0,0.00021378,5]
[389773784,1759841441191,-3000.0,0.0002138,2]
[389773785,1759841441200,-3000.0,0.0002139,2]
[389773786,1759841441210,-3000.0,0.000214,2]
[389773787,1759841441219,-1000.0,0.000214,2]
[389773788,1759841441228,-1000.0,0.000214,2]
[389773789,1759841441238,-1000.0,0.000214,2]
[389773790,1759841441247,-1000.0,0.000214,2]
[389773791,1759841441256,-1000.0,0.000214,2]
[389773792,1759841441266,-1000.0,0.000214,2]
[389773793,1759841441278,-1000.0,0.000214,2]
[389773794,1759841441288,-1000.0,0.000214,2]
[389773795,1759841441299,-1000.0,0.000214,2]
[389773796,1759841441309,-1000.0,0.000214,2]
[389773797,1759841441318,-391.570509,0.000214,2]
[389773798,1759841441330,-928.0,0.000214,2]
[389773799,1759841441339,-3000.0,0.0002141,2]
[389773800,1759841441350,-3000.0,0.0002142,2]
[389773801,1759841441359,-3000.0,0.0002143,2]
[389773802,1759841441369,-4849.063945,0.0002144,2]
[389773803,1759841441378,-12685.86082688,0.000215,2]
[389773804,1759841441387,-200.0,0.0002151,2]
[389773805,1759841441396,-2000.0,0.00021516,2]
[389773806,1759841441406,-2000.0,0.00021516,2]
[389773807,1759841441416,-2000.0,0.00021516,2]
[389773808,1759841441425,-266.43589802,0.00021553,2]
[389773809,1759841441435,-657.0,0.00021557,2]
[389773810,1759841441444,-360.0,0.00021563,2]
[389773811,1759841441454,-151.0,0.000216,3]
[389773812,1759841441463,-157.29,0.00021614,2]
[389773813,1759841441473,-279.06357233,0.00021638,2]
[389773814,1759841441482,-1003.75,0.00021643,2]
[389773815,1759841441492,-539.34,0.00021643,2]
[389773816,1759841441501,-500.0,0.0002175,2]
[389773817,1759841441511,-500.0,0.0002175,2]
[389773818,1759841441521,-6732.87482458,0.0002175,2]
[389773819,1759841441531,-290.56193443,0.00021781,5]
[389773820,1759841441542,-151.0,0.000218,3]
[389773821,1759841441551,-500.0,0.00021805,2]
[389773822,1759841441560,-500.0,0.00021805,2]
[389773823,1759841441571,-657.0,0.00021831,2]
[389773824,1759841441581,-2000.0,0.000219,2]
[389773825,1759841441591,-1094.799999,0.000219,2]
[389773826,1759841441600,-177.14614789,0.000219,2]
[389773827,1759841441609,-1003.75,0.00021917,2]
[389773828,1759841441619,-539.34,0.00021917,2]
[389773829,1759841441629,-175.82478822,0.00021918,2]
[389773830,1759841441640,-175.0,0.00021918,2]
[389773831,1759841441649,-175.0,0.00021918,2]
[389773832,1759841441659,-174.04092118,0.00021918,2]
[389773833,1759841441668,-152.0,0.00021918,2]
[389773834,1759841441678,-152.0,0.00021918,2]
[389773835,1759841441687,-152.0,0.00021918,2]
[389773836,1759841441697,-152.0,0.00021918,2]
[389773837,1759841441706,-152.0,0.00021918,2]
[389773838,1759841441716,-152.0,0.00021918,2]
[389773839,1759841441726,-152.0,0.00021918,2]
[389773840,1759841441736,-212.02373663,0.00021918,2]
[389773841,1759841441746,-152.0,0.00021918,2]
[389773842,1759841441756,-152.0,0.00021918,2]
[389773843,1759841441767,-152.0,0.00021918,2]
[389773844,1759841441776,-152.0,0.00021918,2]
[389773845,1759841441785,-152.0,0.00021918,2]
[389773846,1759841441796,-152.0,0.00021918,2]
[389773847,1759841441806,-152.0,0.00021918,2]
[389773848,1759841441819,-152.0,0.00021918,2]
[389773849,1759841441830,-152.0,0.00021918,2]
[389773850,1759841441843,-152.0,0.00021918,2]
[389773851,1759841441853,-152.0,0.00021918,2]
[389773852,1759841441863,-155.31453739,0.00021918,2]
[389773853,1759841441874,-152.0,0.00021918,2]
[389773854,1759841441884,-152.0,0.00021918,2]
[389773855,1759841441893,-152.0,0.00021918,2]
[389773856,1759841441903,-152.0,0.00021918,2]
[389773857,1759841441912,-152.0,0.00021918,2]
[389773858,1759841441921,-152.0,0.00021918,2]
[389773859,1759841441931,-152.0,0.00021918,2]
[389773860,1759841441940,-152.0,0.00021918,2]
[389773861,1759841441949,-152.0,0.00021918,2]
[389773862,1759841441958,-152.0,0.00021918,2]
[389773863,1759841441967,-152.0,0.00021918,2]
[389773864,1759841441976,-152.0,0.00021918,2]
[389773865,1759841441987,-152.0,0.00021918,2]
[389773866,1759841441996,-152.0,0.00021918,2]
[389773867,1759841442006,-152.0,0.00021918,2]
[389773868,1759841442016,-152.0,0.00021918,2]
[389773869,1759841442026,-152.0,0.00021918,2]
[389773870,1759841442036,-152.0,0.00021918,2]
[389773871,1759841442045,-152.0,0.00021918,2]
[389773872,1759841442055,-152.0,0.00021918,2]
[389773873,1759841442064,-152.0,0.00021918,2]
[389773874,1759841442075,-152.0,0.00021918,2]
[389773875,1759841442085,-152.0,0.00021918,2]
[389773876,1759841442095,-152.0,0.00021918,2]
[389773877,1759841442105,-152.0,0.00021918,2]
[389773878,1759841442115,-152.0,0.00021918,2]
[389773879,1759841442124,-152.0,0.00021918,2]
[389773880,1759841442133,-152.0,0.00021918,2]
[389773881,1759841442143,-151.0,0.00021918,7]
[389773882,1759841442153,-151.0,0.00021918,7]
[389773883,1759841442163,-151.0,0.00021918,7]
[389773884,1759841442172,-151.0,0.00021918,7]
[389773885,1759841442181,-259.541923,0.00021918,7]
[389773886,1759841442191,-151.0,0.00021918,7]
[389773887,1759841442200,-163.1597617,0.00021938,2]
[389773888,1759841442210,-500.0,0.00021938,2]
[389773889,1759841442220,-630.0,0.00021947,2]
[389773890,1759841442229,-1739.065,0.00021947,2]
[389773891,1759841442239,-411.0,0.00021947,2]
[389773892,1759841442248,-19361.94710176,0.00021959,2]
[389773893,1759841442258,-587.52997671,0.00021973,2]
[389773894,1759841442267,-278.802142,0.00021973,7]
[389773895,1759841442281,-278.802142,0.00021973,7]
[389773896,1759841442290,-278.802142,0.00021973,7]
[389773897,1759841442300,-278.802142,0.00021973,7]
[389773898,1759841442308,-151.0,0.00021973,7]
[389773899,1759841442317,-151.0,0.00021973,7]
[389773900,1759841442327,-151.320484,0.00021973,7]
[389773901,1759841442337,-151.0,0.00021973,7]
[389773902,1759841442346,-151.0,0.00021973,7]
[389773903,1759841442355,-151.0,0.00021973,7]
[389773904,1759841442365,-192.327454,0.00021973,7]
[389773905,1759841442374,-36904.0610368,0.00021982,2]
[389773906,1759841442384,-337.91815176,0.00022,2]
[389773907,1759841442394,-10707.0,0.00022,10]
[389773908,1759841442403,-5362.33,0.00022,2]
[389773909,1759841442412,-286.23654563,0.00022,7]
[389773910,1759841442422,-2000.0,0.00022,2]
[389773911,1759841442431,-14031.62,0.00022,2]
[389773912,1759841442440,-100093.92457755,0.00022,5]
[389773913,1759841442449,-1000.0,0.00022,7]
[389773914,1759841442459,-402.02512307,0.00022,10]
[389773915,1759841442469,-1094.8,0.00022,2]
[389773916,1759841442479,-533.72506543,0.00022,7]
[389773917,1759841442488,-402.02512307,0.00022,7]
[389773918,1759841442497,-151.0,0.00022,7]
[389773919,1759841442507,-151.0,0.00022,7]
[389773920,1759841442517,-151.0,0.00022,7]
[389773921,1759841442526,-400.986,0.00022,2]
[389773922,1759841442536,-151.0,0.00022,7]
[389773923,1759841442545,-400.986,0.00022,2]
[389773924,1759841442554,-300.096182,0.00022,7]
[389773925,1759841442564,-400.986,0.00022,2]
[389773926,1759841442574,-400.986,0.00022,2]
[389773927,1759841442584,-151.0,0.00022,7]
[389773928,1759841442593,-151.0,0.00022,7]
[389773929,1759841442603,-151.0,0.00022,7]
[389773930,1759841442613,-151.449236,0.00022,7]
[389773931,1759841442622,-572.09867,0.00022,7]
[389773932,1759841442631,-572.09867,0.00022,7]
[389773933,1759841442641,-572.09867,0.00022,7]
[389773934,1759841442650,-572.09867,0.00022,7]
[389773935,1759841442660,-246.368308,0.00022,7]
[389773936,1759841442670,-246.368308,0.00022,7]
[389773937,1759841442679,-246.368308,0.00022,7]
[389773938,1759841442690,-246.368308,0.00022,7]
[389773939,1759841442700,-151.0,0.00022,7]
[389773940,1759841442709,-234.959769,0.00022,7]
[389773941,1759841442719,-183.738867,0.00022,7]
[389773942,1759841442728,-151.0,0.00022,7]
[389773943,1759841442737,-151.0,0.00022,7]
[389773944,1759841442747,-151.0,0.00022,7]
[389773945,1759841442757,-151.0,0.00022,7]
[389773946,1759841442767,-151.0,0.00022,7]
[389773947,1759841442777,-153.666772,0.00022,7]
[389773948,1759841442786,-151.0,0.00022,7]
[389773949,1759841442796,-153.037968,0.00022,7]
[389773950,1759841442806,-153.037968,0.00022,7]
[389773951,1759841442815,-153.037968,0.00022,7]
[389773952,1759841442826,-153.037968,0.00022,7]
[389773953,1759841442836,-240.0,0.00022,7]
[389773954,1759841442845,-240.0,0.00022,7]
[389773955,1759841442854,-240.0,0.00022,7]
[389773956,1759841442864,-240.0,0.00022,7]
[389773957,1759841442874,-151.0,0.00022,7]
[389773958,1759841442883,-151.821237,0.00022,7]
[389773959,1759841442892,-151.0,0.00022,7]
[389773960,1759841442901,-151.0,0.00022,7]
[389773961,1759841442911,-160.658113,0.00022,7]
[389773962,1759841442920,-190.254912,0.00022,7]
[389773963,1759841442930,-190.254912,0.00022,7]
[389773964,1759841442939,-151.0,0.00022,7]
[389773965,1759841442947,-190.254912,0.00022,7]
[389773966,1759841442958,-190.254912,0.00022,7]
[389773967,1759841442967,-152.159037,0.00022,7]
[389773968,1759841442976,-151.0,0.00022,7]
[389773969,1759841442985,-151.0,0.00022,7]
[389773970,1759841442993,-1024.730886,0.00022,7]
[389773971,1759841443003,-1024.730886,0.00022,7]
[389773972,1759841443012,-1024.730886,0.00022,7]
[389773973,1759841443021,-1024.730886,0.00022,7]
[389773974,1759841443031,-338.325732,0.00022,7]
[389773975,1759841443040,-338.325732,0.00022,7]
[389773976,1759841443049,-338.325732,0.00022,7]
[389773977,1759841443058,-338.325732,0.00022,7]
[389773978,1759841443067,-858.594354,0.00022,7]
[389773979,1759841443077,-151.0,0.00022,7]
[389773980,1759841443086,-1019.352009,0.00022,7]
[389773981,1759841443095,-858.594354,0.00022,7]
[389773982,1759841443104,-151.0,0.00022,7]
[389773984,1759841443113,-1019.352009,0.00022,7]
[389773985,1759841443122,-858.594354,0.00022,7]
[389773986,1759841443131,-1019.352009,0.00022,7]
[389773987,1759841443140,-152.550784,0.00022,7]
[389773988,1759841443149,-858.594354,0.00022,7]
[389773990,1759841443158,-1019.352009,0.00022,7]
[389773992,1759841443166,-151.0,0.00022,7]
[389773993,1759841443175,-151.0,0.00022,7]
[389773994,1759841443184,-151.0,0.00022,7]
[389773995,1759841443193,-151.0,0.00022,7]
[389773996,1759841443202,-151.0,0.00022,7]
[389773997,1759841443211,-151.0,0.00022,7]
[389773998,1759841443221,-151.0,0.00022,7]
[389773999,1759841443230,-151.0,0.00022,7]
[389774001,1759841443239,-151.0,0.00022,7]
[389774002,1759841443247,-158.576464,0.00022,7]
[389774003,1759841443256,-712.235839,0.00022,7]
[389774004,1759841443265,-712.235839,0.00022,7]
[389774005,1759841443275,-712.235839,0.00022,7]
[389774006,1759841443288,-153.134092,0.00022,7]
[389774007,1759841443297,-151.0,0.00022,7]
[389774008,1759841443306,-712.235839,0.00022,7]
[389774009,1759841443314,-151.0,0.00022,7]
[389774010,1759841443326,-151.0,0.00022,7]
[389774012,1759841443335,-151.0,0.00022,7]
[389774013,1759841443343,-228.037078,0.00022,7]
[389774014,1759841443353,-228.037078,0.00022,7]
[389774015,1759841443362,-228.037078,0.00022,7]
[389774016,1759841443371,-151.0,0.00022,7]
[389774017,1759841443380,-228.037078,0.00022,7]
[389774018,1759841443388,-205.42514,0.00022,7]
[389774019,1759841443396,-205.42514,0.00022,7]
[389774020,1759841443404,-151.0,0.00022,7]
[389774021,1759841443412,-205.42514,0.00022,7]
[389774022,1759841443420,-153.068941,0.00022,7]
[389774023,1759841443427,-205.42514,0.00022,7]
[389774024,1759841443435,-151.0,0.00022,7]
[389774025,1759841443443,-151.0,0.00022,7]
[389774026,1759841443451,-151.0,0.00022,7]
[389774027,1759841443459,-151.0,0.00022,7]
[389774028,1759841443468,-151.0,0.00022,7]
[389774029,1759841443477,-246.787544,0.00022,7]
[389774030,1759841443486,-151.0,0.00022,7]
[389774031,1759841443495,-151.0,0.00022,7]
[389774032,1759841443504,-151.0,0.00022,7]
[389774033,1759841443513,-151.0,0.00022,7]
[389774034,1759841443522,-179.20806,0.00022,7]
[389774035,1759841443531,-179.20806,0.00022,7]
[389774036,1759841443540,-179.20806,0.00022,7]
[389774037,1759841443550,-179.20806,0.00022,7]
[389774038,1759841443558,-151.0,0.00022,7]
[389774039,1759841443567,-153.74492,0.00022,7]
[389774040,1759841443577,-1934.841987,0.00022,7]
[389774041,1759841443587,-1934.841987,0.00022,7]
[389774042,1759841443596,-1934.841987,0.00022,7]
[389774043,1759841443605,-1934.841987,0.00022,7]
[389774044,1759841443614,-151.0,0.00022,7]
[389774045,1759841443624,-151.0,0.00022,7]
[389774046,1759841443633,-151.0,0.00022,7]
[389774047,1759841443643,-151.0,0.00022,7]
[389774048,1759841443653,-151.0,0.00022,7]
[389774049,1759841443663,-151.0,0.00022,7]
[389774050,1759841443673,-151.0,0.00022,7]
[389774051,1759841443683,-151.0,0.00022,7]
[389774052,1759841443692,-2500.0,0.00022064,2]
[389774053,1759841443701,-2500.0,0.00022064,2]
[389774054,1759841443711,-2500.0,0.00022064,2]
[389774055,1759841443721,-500.0,0.00022076,2]
[389774056,1759841443730,-500.0,0.00022076,2]
[389774057,1759841443740,-500.0,0.00022096,2]
[389774058,1759841443750,-500.0,0.00022096,2]
[389774059,1759841443761,-302.09070511,0.00022096,2]
[389774060,1759841443771,-255.66736951,0.00022096,2]
[389774061,1759841443781,-500.0,0.00022096,2]
[389774062,1759841443791,-150.56950836,0.00022096,2]
[389774063,1759841443801,-200.0,0.000221,2]
[389774064,1759841443811,-657.0,0.00022105,2]
[389774065,1759841443820,-460.0,0.00022111,2]
[389774066,1759841443830,-500.0,0.00022133,2]
[389774067,1759841443839,-500.0,0.00022133,2]
[389774068,1759841443849,-176.9270828,0.00022133,2]
[389774069,1759841443859,-500.0,0.00022133,2]
[389774071,1759841443869,-500.0,0.00022133,2]
[389774073,1759841443878,-420.71384306,0.00022133,2]
[389774075,1759841443888,-500.0,0.00022133,2]
[389774077,1759841443897,-500.0,0.00022133,2]
[389774079,1759841443906,-500.0,0.00022133,2]
[389774081,1759841443915,-500.0,0.00022133,2]
[389774082,1759841443924,-151.0,0.00022164,7]
[389774084,1759841443933,-225.320935,0.00022164,7]
[389774086,1759841443942,-151.912284,0.00022164,7]
[389774089,1759841443952,-151.0,0.00022164,7]
[389774091,1759841443962,-151.0,0.00022164,7]
[389774093,1759841443972,-1003.75,0.00022191,2]
[389774094,1759841443982,-539.34,0.00022191,2]
[389774097,1759841443992,-449.72422841,0.00022262,2]
[389774100,1759841444001,-500.0,0.00022262,2]
[389774102,1759841444011,-500.0,0.00022262,2]
[389774104,1759841444021,-500.0,0.00022262,2]
[389774106,1759841444031,-500.0,0.00022262,2]
[389774108,1759841444041,-500.0,0.00022262,2]
[389774110,1759841444051,-500.0,0.00022262,2]
[389774111,1759841444060,-500.0,0.00022262,2]
[389774112,1759841444069,-517.91923232,0.00022262,2]
[389774113,1759841444080,-500.0,0.00022262,2]
[389774115,1759841444088,-500.0,0.00022262,2]
[389774116,1759841444097,-500.0,0.00022262,2]
[389774117,1759841444107,-500.0,0.00022262,2]
[389774118,1759841444116,-500.0,0.00022267,2]
[389774119,1759841444126,-500.0,0.00022267,2]
[389774120,1759841444327,-500.0,0.00022267,2]
[389774121,1759841444336,-177.32915195,0.00022267,2]
[389774122,1759841444346,-193.22369181,0.00022267,2]
[389774123,1759841444355,-500.0,0.00022267,2]
[389774124,1759841444365,-500.0,0.00022267,2]
[389774125,1759841444374,-500.0,0.00022267,2]
[389774126,1759841444384,-500.0,0.00022267,2]
[389774127,1759841444394,-500.0,0.00022267,2]